bitfinex/quotes_ETHUSD_20250706
["timestamp","ask_amount","ask_price","bid_price","bid_amount"]
[1751776570656,1e-08,2515.4,2515.3,5.77945798]
[1751776570956,1e-08,2515.4,2515.3,5.81921466]
[1751776574168,1e-08,2515.4,2515.3,5.77945798]
[1751776600708,1e-08,2515.4,2515.3,4.98905798]
[1751776604006,1e-08,2515.4,2515.3,5.02881466]
[1751776604919,1e-08,2515.4,2515.3,5.78041466]
[1751776612420,1e-08,2515.4,2515.3,11.85400743]
[1751776612624,1e-08,2515.4,2515.3,12.11221103]
[1751776636441,1e-08,2515.4,2515.3,12.96905798]
[1751776636640,1e-08,2515.4,2515.3,4.98905798]
[1751776637945,0.78660001,2515.4,2515.3,4.1740689]
[1751776638839,0.78660001,2515.4,2515.3,0.1984]
[1751776639651,0.78660001,2515.4,2514.9,1.932]
[1751776639818,5.52359277,2515.2,2515.1,0.1984]
[1751776640012,6.31019277,2515.2,2515.1,0.1984]
[1751776640951,6.94121205,2515.2,2515.1,0.1984]
[1751776646168,0.751,2515.1,2514.9,0.001]
[1751776646320,5.52359277,2515.0,2514.9,0.001]
[1751776646657,6.27459277,2515.0,2514.9,0.001]
[1751776647360,6.98499397,2515.0,2514.9,0.001]
[1751776648975,7.18339397,2515.0,2514.9,0.001]
[1751776651752,1.6598012,2515.0,2514.9,0.001]
[1751776652743,9.6418012,2515.0,2514.9,0.001]
[1751776652941,13.61794434,2515.0,2514.9,0.001]
[1751776654178,23.61794434,2515.0,2514.9,0.001]
[1751776662105,19.6418012,2515.0,2514.9,0.001]
[1751776662396,19.6478012,2515.0,2514.9,0.001]
[1751776662801,11.6598012,2515.0,2514.9,0.001]
[1751776662999,19.6478012,2515.0,2514.9,0.001]
[1751776669302,18.9374,2515.0,2514.9,0.001]
[1751776670503,18.9394,2515.0,2514.9,0.001]
[1751776679919,24.46574133,2515.0,2514.9,0.001]
[1751776681215,23.71474133,2515.0,2514.9,0.001]
[1751776683616,17.987,2515.0,2514.9,0.001]
[1751776684503,10.002,2515.0,2514.9,3.97730124]
[1751776684685,17.987,2515.0,2514.9,3.97730124]
[1751776686217,10.002,2515.0,2514.9,3.97730124]
[1751776686406,17.987,2515.0,2514.9,0.001]
[1751776687118,17.987,2515.0,2514.9,3.97730124]
[1751776687319,7.986,2515.0,2514.9,4.79262958]
[1751776687696,0.002,2515.0,2514.9,5.62532958]
[1751776688032,7.986,2515.0,2514.9,5.82372958]
[1751776691135,7.986,2515.0,2514.9,1.01472834]
[1751776691332,7.986,2515.0,2514.9,4.17570124]
[1751776691496,7.986,2515.0,2514.9,0.001]
[1751776700719,19.55894658,2515.0,2514.9,0.001]
[1751776701037,15.58280344,2515.0,2514.9,0.001]
[1751776702238,0.002,2515.0,2514.9,0.001]
[1751776702534,7.988,2515.0,2514.9,0.1994]
[1751776708749,7.988,2515.0,2514.9,4.17570124]
[1751776709909,7.988,2515.0,2514.9,0.1994]
[1751776714855,7.988,2515.0,2514.9,4.17570124]
[1751776717851,7.988,2515.0,2514.9,0.1994]
[1751776719852,15.58480344,2515.0,2514.9,0.001]
[1751776720026,18.01481664,2515.0,2514.9,0.001]
[1751776723037,21.99095978,2515.0,2514.9,0.001]
[1751776725469,18.01481664,2515.0,2514.9,0.001]
[1751776728473,10.4180132,2515.0,2514.9,0.001]
[1751776728942,2.4320132,2515.0,2514.9,0.001]
[1751776729143,7.987,2515.0,2514.9,0.001]
[1751776739792,13.51314702,2515.0,2514.9,0.001]
[1751776748178,7.986,2515.0,2514.9,0.001]
[1751776750268,0.002,2515.0,2514.9,3.97730124]
[1751776750468,7.986,2515.0,2514.9,3.97730124]
[1751776752888,7.986,2515.0,2514.9,0.001]
[1751776755698,7.986,2515.0,2514.9,3.97730124]
[1751776772711,0.002,2515.0,2514.9,3.97730124]
[1751776773009,7.986,2515.0,2514.9,4.87301419]
[1751776773229,0.002,2515.0,2514.9,4.87301419]
[1751776773414,7.986,2515.0,2514.9,4.87301419]
[1751776773782,7.986,2515.0,2514.9,3.97730124]
[1751776776287,7.986,2515.0,2514.9,0.001]
[1751776778035,7.986,2515.0,2514.9,3.97730124]
[1751776788247,7.985,2515.0,2514.9,4.76980124]
[1751776789326,0.002,2515.0,2514.9,4.76980124]
[1751776789540,7.985,2515.0,2514.9,4.76980124]
[1751776790556,0.002,2515.0,2514.9,4.76980124]
[1751776790718,7.985,2515.0,2514.9,4.76980124]
[1751776796438,0.002,2515.0,2514.9,4.76980124]
[1751776796621,7.985,2515.0,2514.9,4.76980124]
[1751776802363,7.985,2515.0,2514.9,0.001]
[1751776803290,7.985,2515.0,2514.9,3.97730124]
[1751776805273,7.985,2515.0,2514.9,0.001]
[1751776807672,7.985,2515.0,2514.9,3.97730124]
[1751776808962,7.985,2515.0,2514.9,0.001]
[1751776809768,9.4147747,2515.0,2514.9,0.001]
[1751776814271,7.985,2515.0,2514.9,0.001]
[1751776820164,12.74774314,2515.0,2514.9,0.001]
[1751776820966,22.74774314,2515.0,2514.9,0.001]
[1751776821290,22.94614314,2515.0,2514.9,0.001]
[1751776845617,18.97,2515.0,2514.9,0.001]
[1751776845827,22.21481311,2515.0,2514.9,0.001]
[1751776846117,26.19095625,2515.0,2514.9,0.001]
[1751776847715,18.20795625,2515.0,2514.9,0.001]
[1751776847889,30.93150327,2515.0,2514.9,0.001]
[1751776848199,26.95536013,2515.0,2514.9,0.001]
[1751776851634,30.93150327,2515.0,2514.9,0.001]
[1751776852600,30.93050327,2515.0,2514.9,0.001]
[1751776855534,31.69470327,2515.0,2514.9,0.001]
[1751776888725,23.71170327,2515.0,2514.9,0.001]
[1751776888928,32.86350327,2515.0,2514.9,0.001]
[1751776898702,29.61769016,2515.0,2514.9,0.001]
[1751776921630,21.63469016,2515.0,2514.9,0.001]
[1751776921835,29.61769016,2515.0,2514.9,0.001]
[1751776925811,19.70269016,2515.0,2514.9,0.001]
[1751776926010,24.09154314,2515.0,2514.9,0.001]
[1751776926211,29.61769016,2515.0,2514.9,0.001]
[1751776940672,10.2004,2515.0,2514.9,0.001]
[1751776940971,22.15854314,2515.0,2514.9,0.8231]
[1751776941136,15.72654702,2515.0,2514.9,0.8231]
[1751776941342,23.70854702,2515.0,2514.9,0.8231]
[1751776941542,27.68469016,2515.0,2514.9,0.8231]
[1751776946880,23.70854702,2515.0,2514.9,0.8231]
[1751776947076,27.68469016,2515.0,2514.9,0.8231]
[1751776948260,27.68469016,2515.0,2514.9,0.001]
[1751776951091,137.68469016,2515.0,2514.9,0.001]
[1751776952689,133.70854702,2515.0,2514.9,0.001]
[1751776952990,137.68469016,2515.0,2514.9,0.001]
[1751776956908,133.70854702,2515.0,2514.9,0.001]
[1751776957107,137.68469016,2515.0,2514.9,0.001]
[1751776957788,133.70854702,2515.0,2514.9,0.001]
[1751776958806,137.68469016,2515.0,2514.9,0.001]
[1751776986354,133.70854702,2515.0,2514.9,0.001]
[1751776986647,133.70654702,2515.0,2514.9,0.001]
[1751776987613,120.002,2515.0,2514.9,0.7628]
[1751776987813,117.982,2515.0,2514.9,0.7628]
[1751776990353,123.50814702,2515.0,2514.9,0.7628]
[1751776993261,115.52814702,2515.0,2514.9,0.7628]
[1751776993458,123.50814702,2515.0,2514.9,0.7628]
[1751776994863,110.002,2515.0,2514.9,0.7628]
[1751776995053,117.982,2515.0,2514.9,0.7628]
[1751776995968,117.982,2515.0,2514.9,1.25665883]
[1751776996664,117.981,2515.0,2514.9,1.25665883]
[1751776997241,117.981,2515.0,2514.9,0.7628]
[1751776997445,117.981,2515.0,2514.9,4.73910124]
[1751776998173,110.002,2515.0,2514.9,4.73910124]
[1751776998347,117.981,2515.0,2514.9,4.73910124]
[1751776998942,110.002,2515.0,2514.9,4.73910124]
[1751776999151,117.981,2515.0,2514.9,5.63059431]
[1751777000384,110.002,2515.0,2514.9,5.63059431]
[1751777000537,117.981,2515.0,2514.9,5.82899431]
[1751777007372,110.002,2515.0,2514.9,5.82899431]
[1751777007568,117.981,2515.0,2514.9,5.82899431]
[1751777008370,117.981,2515.0,2514.9,5.86875732]
[1751777010372,110.002,2515.0,2514.9,5.86875732]
[1751777013276,117.98,2515.0,2514.9,5.86875732]
[1751777021093,110.002,2515.0,2514.9,5.86875732]
[1751777028368,110.002,2515.0,2514.9,5.82899431]
[1751777046411,89.66382514,2515.0,2514.9,5.86875732]
[1751777053821,89.66382514,2515.0,2514.9,13.84475732]
[1751777054011,89.66382514,2515.0,2514.9,13.80499431]
[1751777054527,89.66582514,2515.0,2514.9,13.80499431]
[1751777056823,1e-08,2515.4,2515.3,3.9756689]
[1751777057034,1e-08,2515.4,2515.3,4.77081541]
[1751777057194,1e-08,2515.4,2515.3,4.96921541]
[1751777057589,1e-08,2515.4,2515.3,5.00897209]
[1751777057892,1e-08,2515.4,2515.3,4.96921541]
[1751777064841,0.0123475,2516.0,2515.8,3.97487876]
[1751777065142,0.0123475,2516.0,2515.9,4.41195585]
[1751777065438,0.0123475,2516.0,2515.9,4.61035585]
[1751777068448,0.0123475,2516.0,2515.9,4.57060865]
[1751777070850,0.0123475,2516.0,2515.9,5.33320865]
[1751777076946,0.0123475,2516.0,2515.9,5.37295585]
[1751777078585,0.0123475,2516.0,2515.9,4.61035585]
[1751777083650,0.0123475,2516.0,2515.9,4.57060865]
[1751777086161,0.0123475,2516.0,2515.9,4.61035585]
[1751777087621,0.0123475,2516.0,2515.9,4.57060865]
[1751777091250,0.0123475,2516.0,2515.9,4.61035585]
[1751777094028,0.0123475,2516.0,2515.9,4.57060865]
[1751777100068,0.0123475,2516.0,2515.9,4.61035585]
[1751777113082,0.0123475,2516.0,2515.9,4.57060865]
[1751777116793,0.0123475,2516.0,2515.9,4.17312077]
[1751777116794,5.53849452,2516.0,2515.9,4.17312077]
[1751777116961,6.32509452,2516.0,2515.9,4.17312077]
[1751777120890,6.32509452,2516.0,2515.9,0.1984]
[1751777121084,6.32509452,2516.0,2515.9,4.17312077]
[1751777133006,14.29909452,2516.0,2515.9,4.17312077]
[1751777134680,8.7729475,2516.0,2515.9,4.17312077]
[1751777148718,7.9863475,2516.0,2515.9,4.17312077]
[1751777169725,13.51249452,2516.0,2515.9,4.17312077]
[1751777173835,7.9853475,2516.0,2515.9,4.17312077]
[1751777174011,7.9853475,2516.0,2515.9,4.98792019]
[1751777178137,7.9853475,2516.0,2515.9,4.17312077]
[1751777198669,7.9853475,2516.0,2515.9,0.1984]
[1751777199567,13.51149452,2516.0,2515.9,0.1984]
[1751777200465,14.29809452,2516.0,2515.9,0.1984]
[1751777206551,18.27265731,2516.0,2515.9,0.1984]
[1751777208162,14.29809452,2516.0,2515.9,0.1984]
[1751777213754,18.27265731,2516.0,2515.9,0.1984]
[1751777217662,14.29809452,2516.0,2515.9,0.1984]
[1751777218090,18.27265731,2516.0,2515.9,0.1984]
[1751777218788,18.27265731,2516.0,2515.5,0.7546]
[1751777218789,26.02350097,2516.0,2515.5,0.7546]
[1751777218989,5.52614702,2515.7,2515.6,0.1984]
[1751777219161,17.47318378,2515.7,2515.6,0.1984]
[1751777219592,13.49814702,2515.7,2515.6,0.1984]
[1751777223708,17.47318378,2515.7,2515.6,0.1984]
[1751777224492,13.49814702,2515.7,2515.6,0.1984]
[1751777228493,17.47318378,2515.7,2515.6,0.1984]
[1751777228891,13.49814702,2515.7,2515.6,0.1984]
[1751777229393,17.47318378,2515.7,2515.6,0.1984]
[1751777230095,7.972,2515.7,2515.4,0.001]
[1751777230300,17.47327037,2515.7,2515.5,0.1984]
[1751777230472,13.49814702,2515.7,2515.5,0.1984]
[1751777231598,7.973,2515.6,2515.5,0.1984]
[1751777239307,7.973,2515.6,2515.5,4.66960073]
[1751777239470,10.49806473,2516.0,2515.5,4.66960073]
[1751777239674,10.49806473,2516.0,2515.5,4.96885281]
[1751777239675,7.973,2515.9,2515.5,4.96885281]
[1751777240094,7.973,2515.9,2515.6,3.97518606]
[1751777241587,7.973,2515.9,2515.6,4.17358606]
[1751777246716,7.975,2515.9,2515.6,4.17358606]
[1751777248315,5.52614702,2515.8,2515.6,0.1984]
[1751777248488,7.972,2515.7,2515.6,4.17359478]
[1751777248888,7.972,2515.7,2515.6,0.1984]
[1751777254019,0.002,2515.9,2515.6,0.1984]
[1751777254190,7.972,2515.7,2515.6,0.1984]
[1751777259692,13.49814702,2515.7,2515.6,0.1984]
[1751777259893,20.00736814,2515.7,2515.4,0.1994]
[1751777261432,18.25987604,2515.7,2515.4,0.1994]
[1751777264914,12.73372902,2515.7,2515.4,0.1994]
[1751777265116,18.25987604,2515.7,2515.4,0.1994]
[1751777265304,14.28474702,2515.7,2515.4,0.1994]
[1751777265510,18.25981875,2515.7,2515.4,0.1994]
[1751777268320,18.26181875,2515.7,2515.4,0.1994]
[1751777270733,17.47521875,2515.7,2515.4,0.1994]
[1751777271827,13.50014702,2515.7,2515.4,0.1994]
[1751777276946,13.50014702,2515.7,2515.4,4.17480632]
[1751777277151,0.002,2515.7,2515.5,4.75900597]
[1751777277318,7.972,2515.6,2515.5,4.75900597]
[1751777277645,0.002,2515.7,2515.6,0.1984]
[1751777277845,7.974,2515.7,2515.6,0.1984]
[1751777280541,0.002,2515.7,2515.6,0.1984]
[1751777280717,7.974,2515.7,2515.6,0.1984]
[1751777283435,7.974,2515.7,2515.6,4.17359478]
[1751777287455,7.974,2515.7,2515.6,0.1984]
[1751777288638,7.974,2515.7,2515.6,4.17359478]
[1751777289360,7.974,2515.7,2515.6,0.1984]
[1751777290461,7.974,2515.7,2515.6,4.17359478]
[1751777293862,0.002,2515.7,2515.6,5.95795883]
[1751777294045,0.002,2515.7,2515.6,5.99771077]
[1751777297932,0.002,2515.7,2515.6,5.95795883]
[1751777298165,0.002,2515.7,2515.6,7.88495883]
[1751777302267,0.002,2515.7,2515.6,5.95795883]
[1751777302470,0.002,2515.7,2515.6,7.88495883]
[1751777320971,0.002,2515.7,2515.6,7.08295883]
[1751777331800,0.002,2515.7,2515.6,5.15595883]
[1751777332002,0.002,2515.7,2515.6,0.1984]
[1751777335320,0.002,2515.7,2515.6,4.17359478]
[1751777364431,0.002,2515.7,2515.6,4.93149478]
[1751777381856,0.002,2515.7,2515.6,6.85849478]
[1751777386853,0.002,2515.7,2515.6,6.89824672]
[1751777387029,0.002,2515.7,2515.6,8.78270365]
[1751777387228,0.002,2515.7,2515.6,8.74295171]
[1751777388052,0.002,2515.7,2515.6,6.81595171]
[1751777388358,0.002,2515.7,2515.6,6.89824672]
[1751777390655,0.002,2515.7,2515.6,6.85849478]
[1751777394848,0.002,2515.7,2515.6,6.89824672]
[1751777395164,0.002,2515.7,2515.6,7.44824672]
[1751777400371,0.002,2515.7,2515.6,7.40849478]
[1751777400543,0.002,2515.7,2515.6,20.37149122]
[1751777400943,0.002,2515.7,2515.6,25.12149122]
[1751777403678,1e-08,2515.7,2515.6,25.12149122]
[1751777411869,0.0123475,2516.0,2515.9,10.83936779]
[1751777412071,0.0123475,2516.0,2515.9,18.80736779]
[1751777412300,0.0123475,2516.0,2515.9,21.68149308]
[1751777416683,0.0123475,2516.0,2515.9,15.36684606]
[1751777421724,0.0123475,2516.0,2515.9,17.29184606]
[1751777423117,0.7754475,2516.0,2515.9,6.84884606]
[1751777423412,0.7754475,2516.0,2515.9,4.17312077]
[1751777424042,0.7754475,2516.0,2515.9,0.1984]
[1751777425427,0.7754475,2516.0,2515.9,4.17312077]
[1751777427331,0.7754475,2516.0,2515.9,0.1984]
[1751777432201,1.40560695,2516.0,2515.9,0.1984]
[1751777435439,0.7754475,2516.0,2515.9,0.1984]
[1751777438719,8.7464475,2516.0,2515.9,0.1984]
[1751777441641,8.7464475,2516.0,2515.9,0.1994]
[1751777457157,8.7464475,2516.0,2515.9,0.001]
[1751777458756,12.72101029,2516.0,2515.9,0.001]
[1751777459052,15.14156718,2516.0,2515.9,0.001]
[1751777461559,11.16700439,2516.0,2515.9,0.001]
[1751777470083,15.14156718,2516.0,2515.9,0.001]
[1751777470242,11.16700439,2516.0,2515.9,0.001]
[1751777470644,15.14156718,2516.0,2515.9,0.001]
[1751777470879,11.16700439,2516.0,2515.9,0.001]
[1751777472781,15.14156718,2516.0,2515.9,0.001]
[1751777486808,11.16700439,2516.0,2515.9,0.001]
[1751777486985,0.9738475,2516.0,2515.9,0.001]
[1751777487185,8.9438475,2516.0,2515.9,0.001]
[1751777511866,12.91841029,2516.0,2515.9,0.001]
[1751777521771,22.91841029,2516.0,2515.9,0.001]
[1751777530303,28.44455731,2516.0,2515.9,0.001]
[1751777533294,22.91841029,2516.0,2515.9,0.001]
[1751777541195,28.44455731,2516.0,2515.9,0.001]
[1751777547843,22.91841029,2516.0,2515.9,0.001]
[1751777548340,28.44455731,2516.0,2515.9,0.001]
[1751777560321,33.97070433,2516.0,2515.9,0.001]
[1751777587076,28.44455731,2516.0,2515.9,0.001]
[1751777590600,33.97070433,2516.0,2515.9,0.001]
[1751777592984,27.68145731,2516.0,2515.9,0.001]
[1751777593487,33.20760433,2516.0,2515.9,0.001]
[1751777593954,27.68145731,2516.0,2515.9,0.001]
[1751777595487,33.20760433,2516.0,2515.9,0.001]
[1751777597687,27.68145731,2516.0,2515.9,0.001]
[1751777601098,22.15531029,2516.0,2515.9,0.001]
[1751777601301,27.68145731,2516.0,2515.9,0.001]
[1751777604704,33.20760433,2516.0,2515.9,0.001]
[1751777605010,27.68145731,2516.0,2515.9,0.001]
[1751777606326,31.118404,2516.0,2515.9,0.001]
[1751777614008,31.118404,2516.0,2515.7,0.7847]
[1751777614009,9.50102578,2515.8,2515.7,0.7847]
[1751777614211,17.47202578,2515.8,2515.7,0.7847]
[1751777622127,3.97487876,2515.8,2515.7,0.7847]
[1751777622325,11.94487876,2515.8,2515.7,0.7847]
[1751777625531,3.97487876,2515.8,2515.7,0.7847]
[1751777625732,11.94487876,2515.8,2515.7,0.7847]
[1751777631550,3.97519478,2515.6,2515.5,0.7513]
[1751777631734,27.4713418,2515.6,2515.5,0.7513]
[1751777632947,3.97535281,2515.5,2515.4,0.001]
[1751777638065,4.86195718,2515.5,2515.4,0.001]
[1751777647071,14.86195718,2515.5,2515.4,0.001]
[1751777664093,13.97535281,2515.5,2515.4,0.001]
[1751777698377,27.47149983,2515.5,2515.4,0.001]
[1751777699252,21.94535281,2515.5,2515.4,0.001]
[1751777699671,17.97,2515.5,2515.4,0.001]
[1751777700291,17.97,2515.5,2515.4,0.8094]
[1751777700988,17.971,2515.5,2515.4,0.8094]
[1751777702487,10.0,2515.5,2515.4,0.8094]
[1751777702687,10.1984,2515.6,2515.4,0.8094]
[1751777702899,7.971,2515.5,2515.4,1.30775547]
[1751777705097,5.98253794,2515.9,2515.4,5.28326632]
[1751777705297,10.1984,2515.8,2515.4,4.67326632]
[1751777705695,7.972,2515.7,2515.5,3.97533032]
[1751777705882,7.972,2515.7,2515.6,0.8327]
[1751777708871,0.0818,2515.9,2515.6,0.8327]
[1751777709203,7.971,2515.8,2515.6,5.00627514]
[1751777710498,0.0818,2515.9,2515.6,5.00627514]
[1751777710694,7.971,2515.8,2515.7,0.8327]
[1751777711196,7.971,2515.8,2515.7,1.81734899]
[1751777720817,0.0818,2515.9,2515.7,1.81734899]
[1751777721028,7.969,2515.8,2515.7,5.79235316]
[1751777721349,7.969,2515.8,2515.7,1.81734899]
[1751777721845,7.969,2515.8,2515.7,5.79238575]
[1751777722841,7.969,2515.8,2515.7,1.81734899]
[1751777727326,7.969,2515.8,2515.7,0.8327]
[1751777734231,7.969,2515.8,2515.6,0.1984]
[1751777752053,7.969,2515.8,2515.6,4.17358035]
[1751777759723,7.969,2515.8,2515.6,0.1984]
[1751777762538,12.73056257,2515.8,2515.6,0.1984]
[1751777762692,14.98295103,2515.8,2515.6,0.1984]
[1751777765424,11.00798846,2515.8,2515.6,0.1984]
[1751777767254,14.9828839,2515.8,2515.6,0.1984]
[1751777768554,3.97503676,2515.7,2515.6,0.1984]
[1751777769821,14.98295536,2515.8,2515.6,0.1984]
[1751777771734,11.00798846,2515.8,2515.6,0.1984]
[1751777773556,14.98287196,2515.8,2515.6,0.1984]
[1751777776731,11.00798846,2515.8,2515.6,0.1984]
[1751777776930,7.969,2515.8,2515.6,0.1984]
[1751777784084,7.969,2515.8,2515.6,0.9491]
[1751777797297,7.969,2515.8,2515.6,0.1984]
[1751777800883,11.94394824,2515.8,2515.6,0.1984]
[1751777801213,7.969,2515.8,2515.6,0.1984]
[1751777822435,11.94388656,2515.8,2515.6,0.1984]
[1751777826536,7.969,2515.8,2515.6,0.1984]
[1751777827737,7.968,2515.7,2515.6,0.1984]
[1751777836546,7.968,2515.7,2515.6,0.1484]
[1751777859965,7.968,2515.7,2515.6,0.1484]
[1751777871372,7.97,2515.7,2515.6,0.1484]
[1751777882768,7.97,2515.7,2515.6,4.12359478]
[1751777882963,7.97,2515.7,2515.6,0.1484]
[1751777887770,7.969,2515.7,2515.6,4.12359478]
[1751777887998,7.969,2515.7,2515.6,0.1484]
[1751777890204,7.969,2515.7,2515.6,4.12359478]
[1751777891806,7.969,2515.7,2515.6,0.1484]
[1751777907709,7.969,2515.7,2515.5,0.001]
[1751777907710,3.97519478,2515.6,2515.5,0.001]
[1751777908304,19.42385351,2515.7,2515.5,0.001]
[1751777909819,15.44873073,2515.7,2515.5,0.001]
[1751777911615,19.42377055,2515.7,2515.5,0.001]
[1751777913017,15.44873073,2515.7,2515.5,0.001]
[1751777913220,9.92258371,2515.7,2515.5,0.001]
[1751777922834,0.002,2515.7,2515.5,4.73566809]
[1751777923041,7.967,2515.6,2515.5,4.93406809]
[1751777924442,0.002,2515.7,2515.5,4.93406809]
[1751777924619,7.967,2515.6,2515.5,4.93406809]
[1751777927451,0.002,2515.7,2515.5,4.93406809]
[1751777927751,0.002,2515.7,2515.6,5.06465228]
[1751777927752,7.969,2515.7,2515.6,5.06465228]
[1751777927931,7.969,2515.7,2515.6,5.82405228]
[1751777930553,7.969,2515.7,2515.6,4.93299478]
[1751777936567,7.969,2515.7,2515.6,0.9578]
[1751777942261,7.969,2515.7,2515.6,0.1984]
[1751777950037,11.94403676,2515.7,2515.6,0.1984]
[1751777950267,11.94403676,2515.7,2515.5,0.1994]
[1751777950436,9.5013418,2515.6,2515.5,0.1994]
[1751777950634,9.5013418,2515.6,2515.5,0.001]
[1751777950835,10.4661418,2515.6,2515.5,0.001]
[1751777968173,6.49094702,2515.6,2515.5,0.001]
[1751777976601,5.72454702,2515.6,2515.5,0.001]
[1751777976901,7.55545332,2515.6,2515.5,0.001]
[1751777978402,7.55745332,2515.6,2515.5,0.001]
[1751777981409,8.1684,2515.6,2515.5,0.001]
[1751777992522,12.14359478,2515.6,2515.5,0.001]
[1751777992824,8.1684,2515.6,2515.5,0.001]
[1751778001326,12.14359478,2515.6,2515.5,0.001]
[1751778004129,8.1684,2515.6,2515.5,0.001]
[1751778012112,0.2004,2515.6,2515.5,0.001]
[1751778012317,7.969,2515.6,2515.5,0.001]
[1751778022248,11.94419478,2515.6,2515.5,0.001]
[1751778025947,7.969,2515.6,2515.5,0.001]
[1751778034024,0.002,2515.6,2515.5,0.001]
[1751778034225,7.969,2515.6,2515.5,0.001]
[1751778044577,11.94419478,2515.6,2515.5,0.001]
[1751778059396,0.002,2515.6,2515.5,0.001]
[1751778059592,7.969,2515.6,2515.5,0.001]
[1751778060495,11.94419478,2515.6,2515.5,0.001]
[1751778061900,7.969,2515.6,2515.5,0.001]
[1751778064980,11.94419478,2515.6,2515.5,0.001]
[1751778066303,7.969,2515.6,2515.5,0.001]
[1751778066501,11.94419478,2515.6,2515.5,0.001]
[1751778075689,7.969,2515.6,2515.5,0.001]
[1751778079123,11.94419478,2515.6,2515.5,0.001]
[1751778085730,7.969,2515.6,2515.5,0.001]
[1751778091036,7.968,2515.6,2515.5,0.001]
[1751778140588,7.968,2515.6,2515.5,3.97635281]
[1751778145793,7.968,2515.6,2515.5,0.001]
[1751778149279,13.49414702,2515.6,2515.5,0.001]
[1751778153212,17.4693418,2515.6,2515.5,0.001]
[1751778153708,20.47956859,2515.6,2515.5,0.001]
[1751778171350,30.47956859,2515.6,2515.5,0.001]
[1751778183379,26.50437381,2515.6,2515.5,0.001]
[1751778183676,27.4703418,2515.6,2515.5,0.001]
[1751778186881,23.49514702,2515.6,2515.5,0.001]
[1751778187485,27.4703418,2515.6,2515.5,0.001]
[1751778197893,28.2569418,2515.6,2515.5,0.001]
[1751778209320,20.2899418,2515.6,2515.5,0.001]
[1751778210512,28.2569418,2515.6,2515.5,0.001]
[1751778210718,31.5001806,2515.6,2515.5,0.001]
[1751778237369,25.97403358,2515.6,2515.5,0.001]
[1751778237562,31.5001806,2515.6,2515.5,0.001]
[1751778238243,30.7135806,2515.6,2515.5,0.001]
[1751778248188,31.5001806,2515.6,2515.5,0.001]
[1751778257683,32.0501806,2515.6,2515.5,0.001]
[1751778260691,32.0501806,2515.6,2515.5,1e-08]
[1751778262094,39.8601806,2515.6,2515.5,1e-08]
[1751778263365,13.97614314,2515.0,2514.9,0.001]
[1751778263688,27.47129016,2515.0,2514.9,0.001]
[1751778271166,4.17470124,2514.9,2514.8,0.001]
[1751778272097,4.96130124,2514.9,2514.8,0.001]
[1751778272303,8.20454004,2514.9,2514.8,0.001]
[1751778272506,18.20454004,2514.9,2514.8,0.001]
[1751778279216,17.41794004,2514.9,2514.8,0.001]
[1751778279398,25.39094004,2514.9,2514.8,0.001]
[1751778279577,30.91708706,2514.9,2514.8,0.001]
[1751778281108,30.91908706,2514.9,2514.8,0.001]
[1751778285218,31.70568706,2514.9,2514.8,0.001]
[1751778286014,32.25568706,2514.9,2514.8,0.001]
[1751778287683,32.46313589,2514.9,2514.8,0.001]
[1751778293630,13.97677563,2514.6,2514.5,0.0324439]
[1751778293932,28.29691944,2514.6,2514.5,0.0324439]
[1751778302609,21.95377563,2514.6,2514.5,0.0324439]
[1751778302809,27.47992265,2514.6,2514.5,0.0334439]
[1751778305513,21.95377563,2514.6,2514.5,0.0334439]
[1751778307117,21.95377563,2514.6,2514.5,0.8413439]
[1751778307322,22.15217563,2514.6,2514.5,0.8413439]
[1751778307533,18.1754,2514.6,2514.5,0.8413439]
[1751778313538,10.0,2514.6,2514.5,0.8413439]
[1751778313733,17.977,2514.6,2514.5,0.8413439]
[1751778315755,7.977,2514.6,2514.5,5.32105955]
[1751778319158,7.978,2514.7,2514.6,3.97668255]
[1751778319855,7.978,2514.7,2514.6,4.77608255]
[1751778324536,7.978,2514.7,2514.6,0.7994]
[1751778325213,17.4807645,2514.7,2514.5,0.0334439]
[1751778325470,13.97677563,2514.6,2514.5,0.0334439]
[1751778326747,14.17517563,2514.6,2514.5,0.0334439]
[1751778331570,22.56322585,2514.6,2514.5,0.0334439]
[1751778339664,23.11322585,2514.6,2514.5,0.0334439]
[1751778355790,21.04158275,2514.6,2514.5,0.0334439]
[1751778360780,20.25498275,2514.6,2514.5,0.0334439]
[1751778360982,22.16910262,2514.6,2514.5,0.0334439]
[1751778389449,24.09910262,2514.6,2514.5,0.0334439]
[1751778417380,25.9942955,2514.6,2514.5,0.0334439]
[1751778417581,29.60998275,2514.6,2514.5,0.0334439]
[1751778425262,19.60998275,2514.6,2514.5,0.0334439]
[1751778425669,29.60998275,2514.6,2514.5,0.0334439]
[1751778426785,19.70498275,2514.6,2514.5,0.0334439]
[1751778427093,29.60998275,2514.6,2514.5,0.0334439]
[1751778430435,27.68098275,2514.6,2514.5,0.0334439]
[1751778431709,22.15117563,2514.6,2514.5,0.0334439]
[1751778454171,14.17517563,2514.6,2514.5,0.0334439]
[1751778454480,22.15217563,2514.6,2514.5,0.0334439]
[1751778456573,14.17517563,2514.6,2514.5,0.0334439]
[1751778456878,22.15117563,2514.6,2514.5,0.0334439]
[1751778459579,14.17517563,2514.6,2514.5,0.0334439]
[1751778459780,22.15117563,2514.6,2514.5,0.0334439]
[1751778464283,14.17517563,2514.6,2514.5,0.0334439]
[1751778464482,22.15117563,2514.6,2514.5,0.0334439]
[1751778468786,14.17517563,2514.6,2514.5,0.0334439]
[1751778468985,22.15017563,2514.6,2514.5,0.0334439]
[1751778479387,25.58749849,2514.6,2514.5,0.0334439]